bitfinex/quotes_ETHUSD_20250523
["timestamp","ask_amount","ask_price","bid_price","bid_amount"]
[1748022696611,0.65042017,2575.9,2575.8,41.11206069]
[1748022697375,3.88114114,2576.6,2575.8,41.11206069]
[1748022697376,0.805,2576.7,2575.8,37.7797717]
[1748022697576,3.88104555,2576.7,2576.0,12.69522288]
[1748022697806,3.88109299,2576.6,2576.1,3.88177057]
[1748022698308,3.88123598,2576.5,2576.0,12.69522402]
[1748022699178,3.88123598,2576.5,2576.1,3.88182719]
[1748022699414,3.88114928,2576.6,2576.1,3.88182719]
[1748022699592,3.88114928,2576.6,2576.2,1.26951272]
[1748022699793,3.88114928,2576.6,2576.3,26.689]
[1748022699988,3.88124836,2576.5,2576.3,26.689]
[1748022700884,0.8191,2576.9,2576.3,26.689]
[1748022700885,3.88138487,2576.4,2576.3,26.689]
[1748022701496,3.88132728,2576.5,2576.3,26.689]
[1748022701716,3.88115333,2576.6,2576.4,0.43465898]
[1748022701918,3.88101304,2576.7,2576.4,0.43465898]
[1748022702084,3.88123423,2576.5,2576.4,0.43465898]
[1748022703124,3.88123423,2576.5,2576.4,15.054]
[1748022704222,0.788,2576.6,2575.8,0.8079]
[1748022704428,3.88206756,2576.0,2575.9,15.054]
[1748022705122,3.88198757,2576.0,2575.9,15.054]
[1748022705283,4.66998757,2576.0,2575.9,15.054]
[1748022705486,0.7972,2576.4,2575.9,15.054]
[1748022705889,3.88177317,2576.2,2575.9,15.054]
[1748022706112,3.88176919,2576.2,2575.9,15.054]
[1748022706506,3.88184951,2576.1,2575.9,15.054]
[1748022706707,0.7972,2576.4,2575.9,15.054]
[1748022706930,3.88196837,2576.1,2575.9,15.054]
[1748022708213,3.88188584,2576.1,2575.9,15.054]
[1748022708987,3.88157261,2576.3,2575.9,15.054]
[1748022709190,3.88190971,2576.1,2575.9,15.054]
[1748022709400,3.88153553,2576.3,2575.9,15.054]
[1748022709604,3.88184287,2576.1,2575.9,15.054]
[1748022710526,0.7972,2576.4,2575.9,15.054]
[1748022710527,3.8817081,2576.2,2575.9,15.054]
[1748022710830,3.88153553,2576.3,2575.9,15.054]
[1748022711217,3.88172635,2576.2,2575.9,15.054]
[1748022711528,3.88158235,2576.3,2575.9,15.054]
[1748022711729,3.88175905,2576.2,2575.9,15.054]
[1748022713316,4.67864493,2576.4,2575.9,15.054]
[1748022713722,3.88146192,2576.4,2575.9,18.9361204]
[1748022713914,3.88161115,2576.3,2575.9,15.054]
[1748022714225,1.18769195,2576.6,2575.9,18.93607777]
[1748022714428,3.88123423,2576.5,2575.9,18.93607777]
[1748022714738,3.8815371,2576.3,2576.0,1.89360778]
[1748022716504,3.88150438,2576.4,2576.0,1.89360778]
[1748022717004,3.88123423,2576.5,2576.0,1.89360778]
[1748022717205,3.88161246,2576.3,2576.0,1.89360778]
[1748022717934,3.88161246,2576.3,2576.1,11.633]
[1748022718141,3.88147544,2576.4,2576.1,11.633]
[1748022718340,3.88155603,2576.3,2576.1,11.633]
[1748022719745,4.7069961,2576.6,2576.1,11.633]
[1748022719935,14.8631635,2576.8,2576.2,3.88155055]
[1748022720131,3.88098956,2576.7,2576.3,3.88146166]
[1748022720447,3.88098956,2576.7,2576.4,15.043]
[1748022721257,3.88085725,2576.8,2576.4,16.93660778]
[1748022721743,3.93068654,2576.9,2576.4,20.8178508]
[1748022722039,3.9307227,2576.9,2576.5,4.69562305]
[1748022722555,3.9307227,2576.9,2576.5,0.8144]
[1748022722765,3.8808268,2576.8,2576.5,0.8144]
[1748022722969,3.93071742,2576.9,2576.6,11.633]
[1748022723164,3.93071742,2576.9,2576.7,16.752]
[1748022723165,3.88078236,2576.8,2576.7,16.752]
[1748022723383,4.64758236,2576.8,2576.7,31.795]
[1748022723669,6.68010979,2576.8,2576.7,31.795]
[1748022723853,9.31018693,2576.8,2576.7,31.795]
[1748022724256,7.64033894,2576.8,2576.7,31.795]
[1748022724455,7.09033894,2576.8,2576.7,31.795]
[1748022726534,9.67286637,2576.8,2576.7,16.752]
[1748022727163,5.22963297,2576.7,2576.6,15.042]
[1748022727361,8.05526906,2576.7,2576.6,15.042]
[1748022727571,8.4179485,2576.7,2576.6,15.042]
[1748022728976,16.4179485,2576.7,2576.6,15.042]
[1748022732787,26.6079485,2576.7,2576.6,15.042]
[1748022733459,38.2419485,2576.7,2576.6,15.042]
[1748022734687,30.2419485,2576.7,2576.6,15.042]
[1748022737503,4.70318757,2576.0,2575.9,16.752]
[1748022737708,4.70318757,2576.0,2575.9,31.796]
[1748022738218,3.88198757,2576.0,2575.9,31.796]
[1748022738716,0.36267944,2576.0,2575.9,31.796]
[1748022738866,4.24466701,2576.0,2575.9,31.796]
[1748022739059,0.36267944,2576.0,2575.9,31.796]
[1748022739375,0.36267944,2576.0,2575.9,32.6016]
[1748022739804,3.88169598,2576.2,2575.9,31.796]
[1748022740008,3.88183688,2576.1,2576.0,0.8056]
[1748022740380,3.88176411,2576.2,2576.0,0.8056]
[1748022740980,3.88183688,2576.1,2576.0,0.8056]
[1748022742067,3.88183688,2576.1,2576.0,12.4396]
[1748022742562,0.8712,2576.9,2576.0,12.4396]
[1748022742765,0.05,2576.9,2576.1,8.8239]
[1748022742973,0.05,2576.9,2576.5,0.7702]
[1748022743280,0.05,2576.9,2576.4,3.88131471]
[1748022743281,3.88078236,2576.8,2576.7,0.7702]
[1748022744467,3.88129708,2576.5,2576.1,0.7702]
[1748022744667,3.88115877,2576.6,2576.3,0.7842]
[1748022744977,3.88126999,2576.5,2576.3,0.7842]
[1748022745286,3.88115501,2576.6,2576.3,0.7842]
[1748022745973,3.88101566,2576.7,2576.3,0.7842]
[1748022746523,3.93063228,2576.9,2576.4,8.0]
[1748022746670,3.88078236,2576.8,2576.4,8.0]
[1748022746865,3.88078236,2576.8,2576.5,0.7961]
[1748022747118,3.93071801,2576.9,2576.5,0.7961]
[1748022747898,3.93071801,2576.9,2576.5,4.6773078]
[1748022748098,3.88093297,2576.7,2576.6,1.26773078]
[1748022748427,0.05,2576.9,2576.8,11.88078236]
[1748022748637,0.05,2576.9,2576.8,12.67688236]
[1748022749090,0.05,2576.9,2576.8,13.22688236]
[1748022750004,0.05,2576.9,2576.8,39.88588236]
[1748022751321,0.05,2576.9,2576.8,39.88188236]
[1748022751793,0.05,2576.9,2576.8,40.25007181]
[1748022754626,0.05,2576.9,2576.8,39.88188236]
[1748022754831,0.05,2576.9,2576.8,39.87888236]
[1748022757356,0.87697734,2577.7,2577.6,11.8795779]
[1748022757668,0.87697734,2577.7,2577.6,39.767]
[1748022758027,4.75640473,2577.7,2577.6,39.767]
[1748022758227,4.75640473,2577.7,2577.6,31.767]
[1748022758894,4.75640473,2577.7,2577.6,16.745]
[1748022759040,5.53960473,2577.7,2577.6,31.767]
[1748022759247,5.53960473,2577.7,2577.6,31.766]
[1748022759458,6.48649356,2577.7,2577.6,31.766]
[1748022759644,6.48649356,2577.7,2577.6,16.745]
[1748022759854,6.48649356,2577.7,2577.6,31.766]
[1748022760592,6.48649356,2577.7,2577.6,16.745]
[1748022760738,6.48649356,2577.7,2577.6,31.766]
[1748022761478,8.51902099,2577.7,2577.6,15.021]
[1748022762070,9.06902099,2577.7,2577.6,15.021]
[1748022762686,6.48649356,2577.7,2577.6,15.021]
[1748022765168,17.22649356,2577.7,2577.6,15.021]
[1748022766491,16.67649356,2577.7,2577.6,15.021]
[1748022766643,15.72960473,2577.7,2577.6,15.021]
[1748022768868,3.88040563,2577.1,2576.8,17.5538]
[1748022769076,3.88040563,2577.1,2576.9,26.652]
[1748022769387,15.7297452,2577.7,2576.9,26.652]
[1748022769689,3.88020237,2577.2,2576.9,26.652]
[1748022769985,3.88039687,2577.1,2576.9,26.652]
[1748022771989,3.88025896,2577.2,2576.9,26.652]
[1748022772895,3.88033297,2577.1,2576.9,26.652]
[1748022773070,3.88021669,2577.2,2576.9,26.652]
[1748022773269,3.87975633,2577.5,2576.9,26.652]
[1748022773469,3.88032955,2577.2,2576.9,26.652]
[1748022773771,3.88044197,2577.1,2576.9,26.652]
[1748022773967,3.88023212,2577.2,2576.9,26.652]
[1748022774794,3.88033358,2577.1,2576.9,26.652]
[1748022777078,0.87697734,2577.7,2577.2,8.7909]
[1748022777394,0.87697734,2577.7,2577.5,8.0]
[1748022777595,0.87697734,2577.7,2577.2,4.67099422]
[1748022777596,0.87697734,2577.7,2577.6,26.637]
[1748022777795,0.87697734,2577.7,2577.6,27.4279]
[1748022778899,4.75640473,2577.7,2577.6,27.4279]
[1748022779099,0.87697734,2577.7,2577.6,27.4279]
[1748022780461,0.87697734,2577.7,2577.6,35.4279]
[1748022782893,0.87697734,2577.7,2577.6,52.1719]
[1748022783706,4.75640473,2577.7,2577.6,43.378]
[1748022784275,4.75640473,2577.7,2577.6,31.75]
[1748022785220,5.51940473,2577.7,2577.6,31.75]
[1748022786625,5.51940473,2577.7,2577.6,16.744]
[1748022786824,5.51940473,2577.7,2577.6,31.75]
[1748022787026,6.46427567,2577.7,2577.6,31.75]
[1748022789326,5.51940473,2577.7,2577.6,31.75]
[1748022790512,4.75640473,2577.7,2577.6,31.75]
[1748022796228,0.87697734,2577.7,2577.6,31.75]
[1748022796403,4.75640473,2577.7,2577.6,31.75]
[1748022803808,0.87697734,2577.7,2577.6,40.5832]
[1748022805447,0.87697734,2577.7,2577.6,32.5832]
[1748022806449,0.87697734,2577.7,2577.6,44.4627779]
[1748022807417,0.87697734,2577.7,2577.6,44.83248806]
[1748022808744,0.05,2577.9,2577.8,11.8792769]
[1748022808913,0.05,2577.9,2577.8,24.8553769]
[1748022809637,0.05,2577.9,2577.8,25.22508706]
[1748022811347,3.92767326,2578.9,2578.3,0.7792]
[1748022811651,3.87783849,2578.8,2578.4,26.613]
[1748022811860,3.92767795,2578.9,2578.4,26.613]
[1748022812008,3.87785606,2578.8,2578.4,26.613]
[1748022812357,3.87814274,2578.6,2578.4,26.613]
[1748022812652,3.87792298,2578.7,2578.4,26.613]
[1748022812900,3.87807783,2578.6,2578.4,26.613]
[1748022813011,3.87798887,2578.7,2578.4,26.613]
[1748022813206,3.87809766,2578.6,2578.4,26.613]
[1748022813463,3.87822377,2578.5,2578.4,34.613]
[1748022814303,3.87822377,2578.5,2578.3,0.7792]
[1748022814507,3.87822377,2578.5,2578.4,26.611]
[1748022814917,4.65385564,2578.5,2578.4,14.987]
[1748022815312,3.87903816,2578.0,2577.7,0.7984]
[1748022815649,3.87913651,2577.9,2577.8,26.611]
[1748022815858,3.87867504,2578.2,2577.8,26.611]
[1748022816058,3.87912642,2577.9,2577.8,26.611]
[1748022817457,3.8792016,2577.9,2577.8,26.611]
[1748022817757,3.87903829,2578.0,2577.8,26.611]
[1748022817916,3.87912642,2577.9,2577.8,26.611]
[1748022818111,3.87906222,2578.0,2577.8,26.611]
[1748022818326,3.87912642,2577.9,2577.8,26.611]
[1748022820913,3.87912642,2577.9,2577.8,14.987]
[1748022821161,3.87912642,2577.9,2577.8,26.611]
[1748022822866,10.19,2579.1,2577.8,35.4132]
[1748022823149,3.8788061,2578.2,2577.9,8.0]
[1748022823340,3.87891037,2578.1,2578.0,26.611]
[1748022823539,3.87891037,2578.1,2577.9,8.0]
[1748022823754,3.87891037,2578.1,2578.0,26.611]
[1748022824452,3.87891037,2578.1,2577.9,8.0]
[1748022824639,3.87856287,2578.3,2578.0,14.987]
[1748022824841,3.87882549,2578.1,2578.0,14.987]
[1748022825059,3.87942739,2577.7,2577.6,16.744]
[1748022825260,3.87942739,2577.7,2577.6,31.731]
[1748022825417,4.69682739,2577.7,2577.6,31.731]
[1748022827970,4.69682739,2577.7,2577.6,16.744]
[1748022828173,4.69682739,2577.7,2577.6,31.731]
[1748022828847,5.5544403,2577.7,2577.6,31.731]
[1748022829771,5.5544403,2577.7,2577.6,16.744]
[1748022829772,8.17329284,2577.7,2577.6,16.744]
[1748022829961,19.75930851,2577.7,2577.6,16.744]
[1748022830361,20.12114651,2577.7,2577.6,16.744]
[1748022832131,3.8811549,2576.6,2576.4,0.7571]
[1748022832336,3.8811549,2576.6,2576.5,31.716]
[1748022832536,3.88101187,2576.7,2576.5,31.716]
[1748022832960,3.88108359,2576.6,2576.5,31.716]
[1748022834076,3.88108359,2576.6,2576.5,43.342]
[1748022837338,3.88100953,2576.7,2576.5,43.342]
[1748022837742,3.88108359,2576.6,2576.5,43.342]
[1748022837952,3.88108359,2576.6,2576.5,31.716]
[1748022838689,3.88101461,2576.7,2576.5,32.5335]
[1748022838988,3.88069378,2576.9,2576.5,32.5335]
[1748022839382,3.88079345,2576.8,2576.5,32.5335]
[1748022839580,3.88069796,2576.9,2576.5,32.5335]
[1748022839786,3.88080463,2576.8,2576.5,32.5335]
[1748022840624,0.85761291,2577.7,2576.6,8.0]
[1748022840847,3.87979719,2577.5,2577.0,3.88040079]
[1748022840983,3.87998402,2577.4,2577.1,14.978]
[1748022841176,3.87985997,2577.5,2577.1,14.978]
[1748022841631,3.87997884,2577.4,2577.1,14.978]
[1748022841834,3.88015619,2577.3,2577.1,14.978]
[1748022842504,3.88018004,2577.2,2577.1,26.608]
[1748022842693,3.88010477,2577.3,2577.1,26.608]
[1748022843096,3.87989279,2577.4,2577.1,26.608]
[1748022843292,0.776,2577.9,2577.1,27.395]
[1748022843526,3.87959961,2577.6,2577.1,31.27523043]
[1748022845028,3.87974914,2577.5,2577.1,27.395]
[1748022845327,3.8798061,2577.5,2577.1,27.395]
[1748022846188,3.87991856,2577.4,2577.1,27.395]
[1748022846722,3.87996443,2577.4,2577.1,27.395]
[1748022846926,3.88004062,2577.3,2577.1,27.395]
[1748022847129,3.88004062,2577.3,2577.1,26.608]
[1748022847534,3.88004062,2577.3,2577.2,14.976]
[1748022847535,3.88002948,2577.3,2577.2,14.976]
[1748022847718,3.88002948,2577.3,2576.6,8.0]
[1748022847719,3.88019862,2577.2,2576.6,8.0]
[1748022847907,3.8807152,2576.9,2576.7,14.976]
[1748022848515,0.7651,2577.0,2576.7,14.976]
[1748022848826,4.64567471,2577.0,2576.7,14.976]
[1748022849010,3.88063176,2576.9,2576.7,14.976]
[1748022849437,3.88078236,2576.8,2576.7,14.976]
[1748022852617,5.5570181,2576.8,2576.7,14.976]
[1748022852818,5.51803377,2576.8,2576.7,14.976]
[1748022853262,3.88078236,2576.8,2576.7,14.976]
[1748022853469,3.88058336,2577.0,2576.7,14.976]
[1748022853664,0.8183,2577.1,2576.7,14.976]
[1748022853665,3.88078236,2576.8,2576.7,14.976]
[1748022856383,3.88078236,2576.8,2576.5,16.742]
[1748022856578,3.88101236,2576.7,2576.6,14.978]
[1748022857938,3.88101236,2576.7,2576.5,16.742]
[1748022857939,3.88108359,2576.6,2576.5,16.742]
[1748022858145,4.64768359,2576.6,2576.5,31.72]
[1748022860849,4.64768359,2576.6,2576.5,16.742]
[1748022861048,6.90763427,2576.6,2576.5,31.706]
[1748022861269,7.26986557,2576.6,2576.5,31.706]
[1748022862283,6.90763427,2576.6,2576.5,31.706]
[1748022862583,7.26972577,2576.6,2576.5,31.706]
[1748022862945,7.26972577,2576.6,2576.5,16.742]
[1748022863162,7.26972577,2576.6,2576.1,0.05]
[1748022863163,4.66808487,2576.4,2576.3,14.965]
[1748022863860,5.03017637,2576.4,2576.3,14.965]
[1748022864062,0.3620915,2576.4,2576.3,14.965]
[1748022864485,4.24347637,2576.4,2576.3,14.965]
[1748022864905,3.88112591,2576.6,2576.3,14.965]
[1748022865077,3.88112591,2576.6,2576.3,16.85467761]
[1748022865275,3.88123554,2576.5,2576.3,16.85467761]
[1748022865460,3.88111317,2576.6,2576.3,16.85467761]
[1748022865461,3.88112051,2576.6,2576.3,16.85467761]
[1748022865663,3.88104205,2576.7,2576.4,0.87031116]
[1748022865905,3.88103091,2576.7,2576.4,0.8315]
[1748022866090,0.7867,2576.9,2576.4,0.8315]
[1748022866270,3.88121101,2576.6,2576.4,0.8315]
[1748022866765,3.88123423,2576.5,2576.4,0.8315]
[1748022868098,3.88138487,2576.4,2576.3,14.965]
[1748022868306,3.88138487,2576.4,2576.3,14.967]
[1748022871776,3.8816862,2576.2,2576.1,0.05]
[1748022871991,3.8816862,2576.2,2576.1,15.017]
[1748022878462,3.88114276,2576.6,2576.2,3.88166992]
[1748022878611,3.88120158,2576.6,2576.1,32.85728396]
[1748022878810,3.88127116,2576.5,2576.1,28.97552323]
[1748022879510,3.88138562,2576.4,2576.1,28.97552323]
[1748022879710,3.88160242,2576.3,2576.2,27.74272447]
[1748022880304,3.88160242,2576.3,2576.2,26.601]
[1748022880853,3.8816862,2576.2,2576.1,11.683]
[1748022881064,3.8816862,2576.2,2576.1,0.05]
[1748022881356,3.8816862,2576.2,2576.1,15.018]
[1748022885459,3.8816862,2576.2,2576.1,14.968]
[1748022887143,3.88138487,2576.4,2576.1,14.968]
[1748022887341,3.88159367,2576.3,2576.1,15.7435]
[1748022887547,11.0138,2576.7,2576.1,15.7435]
[1748022887859,3.88160019,2576.3,2576.1,15.7435]
[1748022888376,3.8816862,2576.2,2576.1,15.7435]
[1748022888664,3.88161987,2576.3,2576.1,15.7435]
[1748022888871,3.8816862,2576.2,2576.1,15.7435]
[1748022889666,3.88154399,2576.3,2576.1,15.7435]
[1748022889832,3.8816862,2576.2,2576.1,15.7435]
[1748022890442,3.88162148,2576.3,2576.1,15.7435]
[1748022891271,3.8816862,2576.2,2576.1,15.7435]
[1748022892235,3.8816862,2576.2,2576.1,14.968]
[1748022893775,3.88137171,2576.5,2576.1,14.968]
[1748022893945,3.88119258,2576.6,2576.1,14.968]
[1748022894154,3.88123423,2576.5,2576.1,14.968]
[1748022894674,0.8114,2577.3,2576.5,0.8128]
[1748022894875,3.88076735,2576.9,2576.6,43.343]
[1748022895076,3.88079722,2576.8,2576.6,43.343]
[1748022896896,0.8114,2577.3,2576.6,31.71]
[1748022897179,3.88093297,2576.7,2576.6,31.71]
[1748022897380,3.88093297,2576.7,2576.6,43.343]
[1748022897678,3.88023405,2577.2,2576.6,43.343]
[1748022897879,3.88088403,2576.8,2576.6,43.343]
[1748022898177,3.88073264,2576.9,2576.6,43.343]
[1748022899481,3.88089228,2576.8,2576.6,43.343]
[1748022899643,3.88069052,2576.9,2576.6,43.343]
[1748022900769,3.88018004,2577.2,2576.6,43.343]
[1748022900973,3.88093297,2576.7,2576.6,43.343]
[1748022901170,3.8808653,2576.8,2576.6,43.343]
[1748022901882,3.88092793,2576.8,2576.6,43.343]
[1748022902081,3.88093297,2576.7,2576.6,43.343]
[1748022902877,3.88068507,2576.9,2576.6,43.343]
[1748022903130,3.88086791,2576.8,2576.6,16.752]
[1748022903281,3.88093297,2576.7,2576.6,16.752]
[1748022903486,3.88093297,2576.7,2576.6,31.708]
[1748022904102,4.68463297,2576.7,2576.6,31.708]
[1748022907399,10.19,2577.0,2576.6,43.339]
[1748022907895,3.88093297,2576.7,2576.6,43.339]
[1748022909970,3.88093297,2576.7,2576.6,16.752]
[1748022910168,4.65710764,2576.7,2576.6,31.708]
[1748022912412,3.88093297,2576.7,2576.6,31.708]
[1748022912609,3.8805336,2577.0,2576.6,31.708]
[1748022912823,10.9814,2577.5,2576.7,12.6799924]
[1748022913120,3.88014982,2577.3,2576.8,15.51171921]
[1748022913314,3.88024045,2577.2,2576.9,0.7991]
[1748022913971,3.88043134,2577.1,2576.9,0.7991]
[1748022914807,3.88048117,2577.0,2576.9,0.7991]
[1748022915187,3.88045741,2577.1,2576.9,0.7991]
[1748022915591,3.88048117,2577.0,2576.9,0.7991]
[1748022915793,3.88048117,2577.0,2576.9,2.04211]
[1748022915991,3.88038873,2577.1,2576.9,2.04211]
[1748022920336,3.88048117,2577.0,2576.9,2.04211]
[1748022920488,3.88048117,2577.0,2576.9,13.67211]
[1748022920921,0.7914,2577.7,2576.9,13.67211]
[1748022920922,3.88040557,2577.1,2576.9,13.67211]
[1748022921124,3.88034312,2577.1,2576.9,12.4291]
[1748022922727,3.88048117,2577.0,2576.9,12.4291]
[1748022922935,3.88042091,2577.1,2576.9,12.4291]
[1748022924231,3.88027204,2577.2,2576.9,12.4291]
[1748022924393,3.88034092,2577.1,2576.9,12.4291]
[1748022924733,3.88034092,2577.1,2577.0,1.24291]
[1748022925748,3.8803306,2577.1,2577.0,1.24291]
[1748022926552,4.67087302,2577.7,2577.0,1.24291]
[1748022926845,0.05,2577.9,2577.2,8.7951]
[1748022927020,3.87970388,2577.6,2577.2,8.7951]
[1748022927212,3.8795779,2577.6,2577.3,1.4611377]
[1748022927409,3.8795779,2577.6,2577.4,11.629]
[1748022927736,3.87959134,2577.6,2577.4,11.629]
[1748022928214,3.87950673,2577.7,2577.4,11.629]
[1748022928727,3.87964351,2577.6,2577.4,11.629]
[1748022929040,3.87964351,2577.6,2577.5,1.24291]
[1748022929204,3.87951097,2577.7,2577.5,1.24291]
[1748022929537,3.8795164,2577.7,2577.6,31.686]
[1748022933210,3.8795164,2577.7,2577.6,43.312]
[1748022934740,3.8795164,2577.7,2577.6,31.684]
[1748022934911,4.73546194,2577.7,2577.6,31.684]
[1748022935520,7.55592647,2577.7,2577.6,31.684]
[1748022935720,7.51694214,2577.7,2577.6,31.684]
[1748022936012,27.66455754,2577.7,2577.6,14.939]
[1748022936212,16.03755754,2577.7,2577.6,14.939]
[1748022941861,24.03755754,2577.7,2577.6,14.939]
[1748022944397,24.58755754,2577.7,2577.6,14.939]
[1748022944564,3.88063176,2576.9,2576.8,16.743]
[1748022944761,3.88063176,2576.9,2576.8,31.684]
[1748022945110,4.73273612,2576.9,2576.8,31.684]
[1748022945460,23.73973612,2576.9,2576.8,31.684]
[1748022945874,24.10161888,2576.9,2576.8,31.684]
[1748022946079,23.24951452,2576.9,2576.8,31.684]
[1748022946277,4.24251452,2576.9,2576.8,31.684]
[1748022946898,3.88063176,2576.9,2576.8,31.684]
[1748022947794,3.88063176,2576.9,2576.8,39.684]
[1748022947996,10.19,2577.5,2576.8,39.684]
[1748022948187,3.88063176,2576.9,2576.8,39.684]
[1748022949321,3.88050949,2577.0,2576.8,39.684]
[1748022949322,3.88055856,2577.0,2576.9,8.8213]
[1748022949490,3.88006278,2577.3,2576.9,8.8213]
[1748022949691,3.87972841,2577.5,2576.9,8.8213]
[1748022949995,3.88048117,2577.0,2576.9,8.8213]
[1748022950525,3.88047593,2577.1,2576.9,8.8213]
[1748022950812,3.88048117,2577.0,2576.9,8.8213]
[1748022951018,3.88041115,2577.1,2576.9,8.8213]
[1748022951616,3.88048117,2577.0,2576.9,8.8213]
[1748022952728,3.88035277,2577.1,2576.9,8.8213]
[1748022952939,3.88023405,2577.2,2576.9,8.8213]
[1748022953102,3.88035849,2577.1,2577.0,8.0]
[1748022953515,3.88026407,2577.2,2577.1,8.0]
[1748022953718,3.88026407,2577.2,2577.1,19.629]
[1748022956016,3.88026407,2577.2,2577.1,8.0]
[1748022956223,3.88026407,2577.2,2577.1,19.629]
[1748022959019,3.88026407,2577.2,2577.1,21.67403]
[1748022959452,3.88026407,2577.2,2577.1,10.04503]
[1748022959658,3.88026407,2577.2,2577.1,34.557]
[1748022962867,3.88026407,2577.2,2577.1,22.928]
[1748022963049,3.88026407,2577.2,2577.1,34.557]
[1748022964267,3.88026407,2577.2,2577.1,14.928]
[1748022964422,3.88063176,2576.9,2576.8,28.372]
[1748022964623,3.88063176,2576.9,2576.8,51.3]
[1748022967052,3.8805583,2577.0,2576.9,8.0]
[1748022968764,15.50857906,2577.6,2576.9,8.0]
[1748022968765,3.8802472,2577.2,2576.9,8.0]
[1748022969144,3.8802472,2577.2,2576.8,44.0801]
[1748022969334,3.88036255,2577.1,2576.9,8.0]
[1748022969947,3.88048117,2577.0,2576.9,8.0]
[1748022971036,3.88048117,2577.0,2576.9,34.558]
[1748022973706,3.88048117,2577.0,2576.9,8.0]
[1748022973904,3.88048117,2577.0,2576.9,34.557]
[1748022974883,3.88035504,2577.1,2576.9,34.557]
[1748022974884,3.88038269,2577.1,2576.9,34.557]
[1748022975374,3.88040659,2577.1,2576.9,34.557]
[1748022975694,3.88048117,2577.0,2576.9,34.557]
[1748022978803,4.67743176,2576.9,2576.8,16.743]
[1748022979002,4.67743176,2576.9,2576.8,31.671]
[1748022979305,7.08415811,2576.9,2576.8,31.671]
[1748022979806,7.44699719,2576.9,2576.8,31.671]
[1748022980303,9.47787739,2576.9,2576.8,16.743]
[1748022981103,7.44699719,2576.9,2576.8,16.743]
[1748022988694,4.68263297,2576.7,2576.6,14.917]
[1748022988871,4.68353688,2576.1,2576.0,16.75]
[1748022989198,4.68353688,2576.1,2576.0,31.668]
[1748022989382,6.71441708,2576.1,2576.0,31.668]
[1748022989583,7.07725616,2576.1,2576.0,31.668]
[1748022989788,5.04637596,2576.1,2576.0,31.668]
[1748022990123,5.04637596,2576.1,2576.0,14.918]
[1748022990124,10.90535327,2576.1,2576.0,14.918]
[1748022992926,10.90535327,2576.1,2575.2,17.35673461]
[1748022992927,3.88304275,2575.3,2575.2,16.75]
[1748022993227,3.88304275,2575.3,2575.2,31.67]
[1748022995133,3.88304275,2575.3,2575.2,31.671]
[1748022995900,3.88304275,2575.3,2575.2,16.75]
[1748022996099,4.73605853,2575.3,2575.2,31.671]
[1748022997367,4.73605853,2575.3,2575.2,31.673]
[1748022998685,4.73605853,2575.3,2575.2,16.75]
[1748022998988,4.73605853,2575.3,2575.2,31.673]
[1748022998989,5.51895853,2575.3,2575.2,31.673]
[1748022999125,5.51895853,2575.3,2575.2,16.75]
[1748022999431,5.51895853,2575.3,2575.2,31.673]
[1748022999626,14.06895853,2575.3,2575.1,0.05]
[1748022999887,17.84206522,2575.2,2575.1,0.05]
[1748023000049,17.80308089,2575.2,2575.1,0.05]
[1748023000867,35.99308089,2575.2,2575.1,0.05]
[1748023004983,35.99408089,2575.2,2575.1,0.05]
[1748023005471,23.80608089,2575.2,2575.1,0.05]
[1748023005770,35.44408089,2575.2,2575.1,0.05]
[1748023006744,23.80608089,2575.2,2575.1,0.05]
[1748023006949,35.44508089,2575.2,2575.1,0.05]
[1748023009438,27.44508089,2575.2,2575.1,0.05]
[1748023009779,38.02596109,2575.2,2575.1,0.05]
[1748023009984,38.38663831,2575.2,2575.1,0.05]
[1748023010352,28.35575811,2575.2,2575.1,0.05]
[1748023013147,38.68275811,2575.2,2575.1,0.05]
[1748023015548,38.32208089,2575.2,2575.1,0.05]
[1748023016295,38.68355299,2575.2,2575.1,0.05]
[1748023016799,38.32208089,2575.2,2575.1,0.05]
[1748023017014,38.68379427,2575.2,2575.1,0.05]
[1748023018686,42.76579427,2575.2,2575.1,0.05]
[1748023018885,44.79667447,2575.2,2575.1,0.05]
[1748023019093,44.79667447,2575.2,2574.2,31.681]
[1748023019094,3.88455114,2574.3,2574.2,31.681]
[1748023020113,3.88455114,2574.3,2574.2,32.4822]
[1748023020317,4.24626452,2574.3,2574.2,17.5642]
[1748023020481,4.24626452,2574.3,2574.2,31.681]
[1748023021371,4.24626452,2574.3,2574.2,31.682]
[1748023022607,14.43626452,2574.3,2574.2,31.682]
[1748023022916,17.74079418,2574.3,2574.2,31.682]
[1748023023389,29.38279418,2574.3,2574.2,31.682]
[1748023025200,26.07926452,2574.3,2574.2,31.682]
[1748023025404,25.71755114,2574.3,2574.2,31.682]
[1748023029147,27.07815114,2574.3,2574.2,31.682]
[1748023029647,29.40515114,2574.3,2574.2,31.682]
[1748023029848,31.43603134,2574.3,2574.2,14.919]
[1748023030048,34.96807768,2574.3,2574.2,14.919]
[1748023030243,7.56720204,2574.2,2574.1,0.05]
[1748023030543,17.75720204,2574.2,2574.1,0.05]
[1748023032231,29.40020204,2574.2,2574.1,0.05]
[1748023034849,17.75720204,2574.2,2574.1,0.05]
[1748023035004,20.86611322,2574.2,2574.1,0.05]
[1748023035208,32.51011322,2574.2,2574.1,0.05]
[1748023035943,31.70561322,2574.2,2574.1,0.05]
[1748023036843,20.06061322,2574.2,2574.1,0.03176236]
[1748023037024,31.70561322,2574.2,2574.1,0.03176236]
[1748023037938,17.18361322,2574.2,2574.1,0.03176236]
[1748023038123,14.07470204,2574.2,2574.1,0.03176236]
[1748023040135,3.88470204,2574.2,2574.1,0.03176236]
[1748023044248,3.88470204,2574.2,2574.1,0.03176236]